bitfinex-derivatives/quotes_BTCF0:USTF0_20240913
["timestamp","ask_amount","ask_price","bid_price","bid_amount"]
[1726198663257,0.086269,57955.0,57954.0,0.06880594]
[1726198663454,0.086269,57955.0,57949.0,0.0310608]
[1726198663455,0.086271,57954.0,57953.0,0.06880594]
[1726198665368,0.086272,57953.0,57952.0,0.06880594]
[1726198665656,0.086272,57953.0,57951.0,1.12108]
[1726198665657,0.086273,57952.0,57951.0,0.15616094]
[1726198665867,0.447073,57952.0,57951.0,0.15503451]
[1726198666349,0.447073,57952.0,57951.0,0.086275]
[1726198666546,0.086275,57951.0,57950.0,1.24108]
[1726198666750,0.086275,57951.0,57950.0,1.24]
[1726198667554,0.12,57951.0,57947.0,0.06874475]
[1726198667777,0.206279,57948.0,57947.0,0.06874475]
[1726198667963,0.086281,57947.0,57946.0,0.06874475]
[1726198668160,0.447081,57947.0,57946.0,0.18874475]
[1726198668664,0.447081,57947.0,57946.0,0.206282]
[1726198668665,0.3608,57947.0,57946.0,0.206282]
[1726198669660,0.3628,57947.0,57946.0,0.206282]
[1726198670765,0.449081,57947.0,57946.0,0.12]
[1726198671452,0.449081,57947.0,57943.0,1.207367]
[1726198671656,0.449081,57947.0,57943.0,1.326287]
[1726198672553,0.448081,57947.0,57943.0,1.326287]
[1726198672860,0.086284,57945.0,57943.0,1.326287]
[1726198674066,0.087284,57945.0,57943.0,1.326287]
[1726198674862,0.088284,57945.0,57943.0,1.326287]
[1726198676056,0.086285,57944.0,57943.0,1.326287]
[1726198677072,0.001,57945.0,57943.0,1.326287]
[1726198677364,0.001,57944.0,57943.0,1.326287]
[1726198677668,0.001,57944.0,57943.0,1.52431019]
[1726198677862,0.002,57944.0,57943.0,1.52431019]
[1726198678070,0.002,57944.0,57943.0,1.43825593]
[1726198678367,0.002,57944.0,57943.0,1.52426496]
[1726198678865,0.001,57944.0,57943.0,1.52426496]
[1726198679066,0.087285,57944.0,57943.0,1.24]
[1726198679571,0.001,57944.0,57943.0,1.12]
[1726198679964,0.087285,57944.0,57943.0,1.252687]
[1726198680160,0.088285,57944.0,57943.0,1.252687]
[1726198680359,0.088285,57944.0,57943.0,0.0464]
[1726198683270,0.11999929,57944.0,57943.0,0.0464]
[1726198686775,0.086288,57942.0,57941.0,0.12]
[1726198686973,0.447088,57942.0,57941.0,0.12]
[1726198688067,0.449088,57942.0,57941.0,0.12]
[1726198688774,0.08629,57941.0,57940.0,0.11734697]
[1726198688965,0.08629,57941.0,57940.0,0.22941227]
[1726198689166,0.08629,57941.0,57940.0,0.11734697]
[1726198689471,0.3628,57942.0,57941.0,0.08629]
[1726198689663,0.449088,57942.0,57941.0,0.19817621]
[1726198690569,0.449088,57942.0,57940.0,0.15133515]
[1726198690767,0.08629,57941.0,57940.0,0.15133515]
[1726198691273,0.08729,57941.0,57940.0,1.27133515]
[1726198691486,0.08729,57941.0,57940.0,2.83618615]
[1726198691487,0.001,57941.0,57940.0,2.83618615]
[1726198691664,0.001,57942.0,57941.0,0.08629]
[1726198691862,0.001,57942.0,57941.0,0.20629]
[1726198692073,0.001,57942.0,57941.0,1.32405]
[1726198692379,0.001,57942.0,57941.0,2.44405]
[1726198692769,0.086284,57945.0,57944.0,0.086285]
[1726198693070,0.086284,57945.0,57944.0,0.206285]
[1726198693781,0.086284,57945.0,57944.0,1.326285]
[1726198694074,0.3608,57947.0,57945.0,0.086284]
[1726198694267,0.3608,57947.0,57945.0,0.134484]
[1726198694873,0.447081,57947.0,57946.0,0.0463]
[1726198695576,0.447081,57947.0,57946.0,0.132582]
[1726198695577,0.449081,57947.0,57946.0,0.132582]
[1726198699085,0.449081,57947.0,57946.0,0.24475001]
[1726198699290,0.3628,57947.0,57946.0,0.24475001]
[1726198699476,0.3628,57947.0,57946.0,0.34824731]
[1726198699680,0.3628,57947.0,57946.0,0.24475001]
[1726198702377,0.3628,57947.0,57946.0,0.34824731]
[1726198703588,0.3628,57947.0,57946.0,0.378774]
[1726198703990,0.3628,57947.0,57946.0,0.2752767]
[1726198705985,0.40595447,57947.0,57946.0,0.26658444]
[1726198706184,0.40595447,57947.0,57946.0,0.16310869]
[1726198707087,0.52607997,57947.0,57946.0,0.16310869]
[1726198707289,0.40595447,57947.0,57946.0,0.16310869]
[1726198707677,0.45601671,57947.0,57946.0,0.16310869]
[1726198707991,0.52606454,57947.0,57946.0,0.16310869]
[1726198708384,0.40595447,57947.0,57946.0,0.16310869]
[1726198708589,0.45608172,57947.0,57946.0,0.16310869]
[1726198708777,0.52607547,57947.0,57946.0,0.16310869]
[1726198710091,0.57614384,57947.0,57946.0,0.16310869]
[1726198710284,0.45602284,57947.0,57946.0,0.16310869]
[1726198710683,0.45602284,57947.0,57946.0,0.21130869]
[1726198712811,0.7483565,57947.0,57928.0,0.004]
[1726198713005,0.3608,57941.0,57935.0,0.12]
[1726198713293,0.16323291,57940.0,57931.0,0.39159692]
[1726198713503,0.04313129,57939.0,57933.0,0.12]
[1726198713685,0.12010162,57940.0,57933.0,0.12]
[1726198713686,0.04313129,57938.0,57933.0,0.12]
[1726198713887,0.0863,57934.0,57933.0,0.12]
[1726198714189,0.0863,57934.0,57933.0,0.23257031]
[1726198714589,0.086296,57937.0,57933.0,0.23257031]
[1726198714797,0.086296,57937.0,57934.0,0.198762]
[1726198714995,0.086296,57937.0,57934.0,0.08621059]
[1726198715190,0.001,57938.0,57934.0,0.08621059]
[1726198715191,0.001,57938.0,57936.0,0.12]
[1726198716488,0.001,57939.0,57936.0,0.12]
[1726198717293,0.086292,57940.0,57936.0,0.12]
[1726198717597,0.086292,57940.0,57935.0,0.08621059]
[1726198717598,0.086292,57940.0,57939.0,0.12]
[1726198718391,0.086292,57940.0,57939.0,0.18894341]
[1726198718584,0.086292,57940.0,57939.0,0.12]
[1726198718787,0.086292,57940.0,57939.0,0.18893716]
[1726198718988,0.086292,57940.0,57939.0,0.12]
[1726198719189,0.086292,57940.0,57939.0,0.18893822]
[1726198719395,0.086292,57940.0,57939.0,0.12]
[1726198720096,0.088292,57940.0,57939.0,0.18893403]
[1726198720688,0.088292,57940.0,57939.0,0.12]
[1726198723400,0.002,57940.0,57939.0,0.206293]
[1726198729192,0.002,57940.0,57939.0,0.31880764]
[1726198729503,0.002,57940.0,57939.0,0.35041973]
[1726198729997,0.002,57940.0,57939.0,0.45389548]
[1726198730397,0.002,57940.0,57939.0,0.35041973]
[1726198730597,0.002,57940.0,57939.0,0.45389548]
[1726198731512,0.002,57940.0,57939.0,0.45379233]
[1726198731899,0.002,57940.0,57939.0,0.35041973]
[1726198732102,0.002,57940.0,57939.0,0.44611973]
[1726198732301,0.002,57940.0,57939.0,0.54949233]
[1726198732506,0.002,57940.0,57939.0,0.54949725]
[1726198733005,0.002,57940.0,57939.0,0.44611973]
[1726198733304,0.002,57940.0,57939.0,0.5494976]
[1726198734100,0.002,57940.0,57939.0,0.44611973]
[1726198734300,0.002,57940.0,57939.0,0.44601422]
[1726198734501,0.002,57940.0,57939.0,0.5493984]
[1726198734700,0.002,57940.0,57939.0,0.44601422]
[1726198735905,0.002,57940.0,57939.0,0.54941179]
[1726198736105,0.002,57940.0,57939.0,0.33360509]
[1726198744114,0.3628,57940.0,57939.0,0.33360509]
[1726198744409,0.3628,57940.0,57939.0,0.44632207]
[1726198744603,0.3628,57940.0,57939.0,0.58068257]
[1726198747821,0.3628,57940.0,57939.0,0.58081988]
[1726198748617,0.30236383,57940.0,57939.0,0.58081988]
[1726198748815,0.086288,57943.0,57940.0,0.08629]
[1726198749020,0.086288,57943.0,57941.0,0.33350479]
[1726198749319,0.086288,57943.0,57942.0,0.11278244]
[1726198750021,0.088288,57943.0,57942.0,0.11278244]
[1726198751219,0.088288,57943.0,57942.0,0.2466421]
[1726198752314,0.088288,57943.0,57942.0,0.4529301]
[1726198752514,0.088288,57943.0,57942.0,0.3329301]
[1726198752711,0.088288,57943.0,57942.0,0.4529301]
[1726198753117,0.002,57943.0,57942.0,0.4529301]
[1726198753317,0.002,57943.0,57942.0,0.31907044]
[1726198756728,0.002,57943.0,57942.0,0.19907044]
[1726198756929,0.002,57943.0,57942.0,0.31907044]
[1726198758432,0.04510065,57943.0,57942.0,0.206288]
[1726198765921,0.13138765,57943.0,57942.0,0.12]
[1726198766320,0.088287,57943.0,57942.0,0.23230567]
[1726198767231,0.088287,57943.0,57942.0,0.23230494]
[1726198772036,0.088287,57943.0,57942.0,0.23230859]
[1726198775836,0.088287,57943.0,57942.0,0.36618681]
[1726198777338,0.002,57943.0,57942.0,0.45247481]
[1726198779139,0.001,57947.0,57946.0,0.086282]
[1726198779341,0.086272,57953.0,57948.0,0.086278]
[1726198779550,0.086272,57953.0,57952.0,0.12]
[1726198779736,0.086272,57953.0,57952.0,0.23230859]
[1726198780245,0.11707289,57953.0,57952.0,0.23230859]
[1726198780963,0.11907289,57953.0,57952.0,0.23230859]
[1726198781161,0.12007289,57953.0,57952.0,0.23230859]
[1726198781356,0.21386501,57953.0,57952.0,0.12]
[1726198784056,0.2138443,57953.0,57952.0,0.12]
[1726198785652,0.2138443,57953.0,57952.0,0.206273]
[1726198788362,0.12007289,57953.0,57952.0,0.206273]
[1726198788865,0.12007289,57953.0,57949.0,0.206278]
[1726198788866,0.086276,57950.0,57949.0,0.206278]
[1726198790869,0.086276,57950.0,57946.0,0.12]
[1726198791262,0.086281,57947.0,57946.0,0.12]
[1726198793871,0.087281,57947.0,57946.0,0.12]
[1726198794471,0.088281,57947.0,57946.0,0.12]
[1726198794866,0.449081,57947.0,57946.0,0.12]
[1726198796372,0.086282,57946.0,57945.0,0.086283]
[1726198796572,0.086282,57946.0,57945.0,0.206283]
[1726198796573,0.12928841,57946.0,57945.0,0.206283]
[1726198798175,0.13028841,57946.0,57945.0,0.206283]
[1726198798576,0.13128841,57946.0,57945.0,0.206283]
[1726198799175,0.49208841,57946.0,57945.0,0.206283]
[1726198801779,0.49208841,57946.0,57941.0,0.0449]
[1726198801780,0.172576,57942.0,57941.0,0.0449]
[1726198801979,0.172576,57942.0,57939.0,0.0963]
[1726198801980,0.086291,57940.0,57939.0,0.0963]
[1726198802188,0.49005227,57940.0,57939.0,0.0963]
[1726198803382,0.447091,57940.0,57939.0,0.20877384]
[1726198803874,0.447091,57940.0,57939.0,0.11247384]
[1726198804086,1.4786,57940.0,57932.0,0.10355618]
[1726198804278,0.0863,57934.0,57933.0,0.21621883]
[1726198804479,0.4471,57934.0,57933.0,0.23266265]
[1726198804780,0.4471,57934.0,57933.0,0.33557248]
[1726198805183,0.4471,57934.0,57933.0,0.42187448]
[1726198805381,0.4471,57934.0,57933.0,0.42172708]
[1726198805782,0.4471,57934.0,57933.0,0.33542508]
[1726198806087,0.4471,57934.0,57933.0,0.2320163]
[1726198809482,0.4471,57934.0,57933.0,0.23207791]
[1726198811079,0.4471,57934.0,57933.0,0.11207791]
[1726198811279,0.4471,57934.0,57933.0,0.12]
[1726198814394,0.47835637,57934.0,57933.0,0.12]
[1726198817388,0.086303,57932.0,57931.0,0.086304]
[1726198817600,0.086303,57932.0,57931.0,0.206304]
[1726198818295,0.086303,57933.0,57932.0,0.086302]
[1726198818792,0.086303,57933.0,57932.0,0.19842883]
[1726198819093,0.086303,57933.0,57932.0,0.086302]
[1726198819295,0.086303,57933.0,57932.0,0.19843315]
[1726198819889,0.086309,57929.0,57927.0,1.27968878]
[1726198820089,0.086309,57929.0,57928.0,0.23218637]
[1726198820995,0.087309,57929.0,57928.0,0.11218637]
[1726198821192,0.087309,57929.0,57928.0,0.31849537]
[1726198821493,0.086309,57929.0,57928.0,0.31849537]
[1726198821793,0.088309,57929.0,57928.0,0.31849537]
[1726198823097,0.002,57929.0,57928.0,0.31849537]
[1726198826300,0.002,57929.0,57928.0,0.42190415]
[1726198826495,0.002,57929.0,57928.0,0.206309]
[1726198831299,0.002,57929.0,57928.0,0.12]
[1726198832199,0.088308,57929.0,57928.0,0.12]
[1726198832399,0.088308,57929.0,57925.0,0.03053903]
[1726198832400,0.086324,57918.0,57904.0,0.06891889]
[1726198832704,0.4808,57918.0,57910.0,0.12]
[1726198832904,0.3608,57911.0,57908.0,0.0491]
[1726198834194,0.3608,57911.0,57910.0,0.12]
[1726198834195,0.447135,57911.0,57910.0,0.12]
[1726198834596,0.448135,57911.0,57910.0,0.12]
[1726198835006,0.449135,57911.0,57910.0,0.12]
[1726198835309,0.448136,57911.0,57910.0,0.12]
[1726198835493,0.449136,57911.0,57910.0,0.12]
[1726198836109,0.3628,57911.0,57910.0,0.12]
[1726198836497,0.449135,57911.0,57910.0,0.12]
[1726198837513,0.449135,57911.0,57910.0,0.18878677]
[1726198837813,0.449135,57911.0,57910.0,0.12]
[1726198838304,0.449135,57911.0,57910.0,0.18878664]
[1726198838510,0.449135,57911.0,57910.0,0.12]
[1726198843815,0.449135,57911.0,57910.0,1.25]
[1726198844315,0.086336,57910.0,57909.0,0.0474]
[1726198844512,0.086336,57910.0,57909.0,0.1674]
[1726198844704,0.086336,57910.0,57909.0,1.2974]
[1726198845607,0.086336,57910.0,57909.0,1.383738]
[1726198846004,0.002,57911.0,57910.0,0.086336]
[1726198846310,0.086328,57916.0,57912.0,0.086333]
[1726198846511,0.086328,57916.0,57915.0,0.12]
[1726198846710,0.086328,57916.0,57915.0,1.25]
[1726198847307,0.086328,57916.0,57915.0,0.12]
[1726198847709,0.087328,57916.0,57915.0,1.25]
[1726198848002,0.088328,57916.0,57915.0,1.25]
[1726198848202,0.088328,57916.0,57915.0,0.12]
[1726198848608,0.13065501,57916.0,57915.0,1.25]
[1726198848805,0.13065501,57916.0,57915.0,1.336329]
[1726198848806,0.04432701,57916.0,57915.0,1.336329]
[1726198849217,0.04432705,57916.0,57915.0,1.336329]
[1726198849413,0.004,57921.0,57920.0,0.086321]
[1726198849613,0.451114,57925.0,57920.0,0.724281]
[1726198849912,0.447114,57925.0,57924.0,0.12]
[1726198851421,0.448114,57925.0,57924.0,0.12]
[1726198852020,0.3618,57925.0,57924.0,0.12]
[1726198853316,0.3628,57925.0,57924.0,0.12]
[1726198854822,0.002,57925.0,57924.0,0.12]
[1726198855821,0.088314,57925.0,57924.0,0.12]
[1726198856027,0.20832608,57925.0,57924.0,0.12]
[1726198856521,0.088314,57925.0,57924.0,0.12]
[1726198861820,0.002,57925.0,57924.0,0.206315]
[1726198863521,0.004,57930.0,57923.0,0.086316]
[1726198863824,0.4808,57934.0,57921.0,0.22994465]
[1726198863825,0.086315,57924.0,57922.0,0.15517766]
[1726198864325,0.3608,57929.0,57922.0,0.15517766]
[1726198864627,0.3608,57924.0,57923.0,0.086316]
[1726198864838,0.3608,57924.0,57923.0,0.206316]
[1726198866030,0.3618,57924.0,57923.0,0.206316]
[1726198866822,0.002,57924.0,57923.0,0.206316]
[1726198867128,0.3628,57924.0,57923.0,0.206316]
[1726198867330,0.3628,57924.0,57923.0,0.27517566]
[1726198867535,0.3628,57924.0,57923.0,0.206316]
[1726198869722,0.002,57924.0,57923.0,0.206316]
[1726198878637,0.002,57924.0,57923.0,0.31891524]
[1726198881666,0.002,57924.0,57923.0,0.19891524]
[1726198882246,0.002,57924.0,57923.0,0.31891524]
[1726198884537,0.002,57924.0,57923.0,0.19891524]
[1726198884736,0.002,57924.0,57923.0,0.31891524]
[1726198885046,0.002,57924.0,57923.0,0.31916135]
[1726198886651,0.04438316,57924.0,57923.0,0.206316]
[1726198887340,0.45414373,57924.0,57921.0,0.00092]
[1726198887541,0.002,57924.0,57923.0,0.12]
[1726198887741,0.04430509,57924.0,57923.0,0.12]
[1726198887941,0.002,57924.0,57923.0,0.12]
[1726198888343,0.09339329,57924.0,57923.0,0.12]
[1726198888744,0.09339329,57924.0,57923.0,0.206317]
[1726198889158,0.09239329,57924.0,57923.0,0.206317]
[1726198889347,0.09339329,57924.0,57923.0,0.206317]
[1726198889852,0.09336001,57924.0,57923.0,0.206317]
[1726198891860,0.09336001,57924.0,57923.0,0.23111624]
[1726198893050,0.16445024,57924.0,57923.0,0.23111624]
[1726198893750,0.002,57924.0,57923.0,0.34415017]
[1726198894060,0.002,57924.0,57923.0,0.31935093]
[1726198901554,0.002,57924.0,57923.0,0.45399411]
[1726198901750,0.002,57924.0,57923.0,0.206317]
[1726198908664,0.3608,57929.0,57923.0,0.45391003]
[1726198908857,0.3608,57929.0,57928.0,0.206309]
[1726198909159,0.3608,57929.0,57928.0,0.319264]
[1726198910062,0.3618,57929.0,57928.0,0.319264]
[1726198911871,0.3608,57929.0,57928.0,0.319264]
[1726198912266,0.3608,57929.0,57928.0,0.206309]
[1726198917171,0.3608,57929.0,57928.0,1.3614212]
[1726198917560,0.3608,57929.0,57928.0,1.60887357]
[1726198917961,0.3608,57929.0,57928.0,1.47431203]
[1726198918269,0.3608,57929.0,57928.0,1.3614212]
[1726198918664,0.02499695,57934.0,57933.0,0.086302]
[1726198918862,0.3608,57936.0,57933.0,0.206302]
[1726198920563,0.3668,57936.0,57933.0,0.206302]
[1726198920764,0.39159776,57936.0,57933.0,0.206302]
[1726198920972,0.005,57934.0,57933.0,0.206302]
[1726198922175,0.011,57934.0,57933.0,0.206302]
[1726198922378,0.006,57934.0,57933.0,0.206302]
[1726198922573,0.04868733,57934.0,57933.0,0.206302]
[1726198923074,0.14093667,57934.0,57933.0,0.206302]
[1726198924079,0.23223667,57934.0,57933.0,0.12]
[1726198924266,0.13998733,57934.0,57933.0,0.12]
[1726198925868,0.13998733,57934.0,57933.0,0.206302]
[1726198927068,0.13998733,57934.0,57933.0,0.086302]
[1726198927268,0.086305,57931.0,57930.0,0.086305]
[1726198927469,0.447105,57931.0,57930.0,0.206305]
[1726198928581,0.449105,57931.0,57930.0,0.206305]
[1726198928784,0.451105,57931.0,57930.0,0.206305]
[1726198929879,0.3648,57931.0,57930.0,0.206305]
[1726198930884,0.3648,57931.0,57930.0,0.12]
[1726198931384,0.3648,57931.0,57929.0,0.086308]
[1726198931580,0.3648,57931.0,57930.0,0.12]
[1726198933682,0.3638,57931.0,57930.0,0.12]
[1726198934374,0.3648,57931.0,57930.0,0.12]
[1726198937587,0.3648,57931.0,57930.0,0.206306]
[1726198939285,0.45608986,57931.0,57930.0,0.206306]
[1726198940680,0.09528986,57931.0,57930.0,0.206306]
[1726198940888,0.09551696,57931.0,57930.0,0.206306]
[1726198941788,0.12421335,57931.0,57930.0,0.206306]
[1726198942189,0.16656179,57931.0,57930.0,1.336306]
[1726198942489,0.04634844,57931.0,57930.0,1.336306]
[1726198942889,0.16656179,57931.0,57930.0,1.336306]
[1726198943290,0.04634844,57931.0,57930.0,1.336306]
[1726198945587,0.12818766,57937.0,57930.0,1.25]
[1726198945783,0.008,57941.0,57938.0,0.086293]
[1726198945999,0.04951758,57940.0,57938.0,0.086293]
[1726198946291,0.13738064,57944.0,57939.0,0.086293]
[1726198946489,0.04793312,57943.0,57940.0,0.0489]
[1726198946684,0.04793312,57942.0,57940.0,0.0489]
[1726198946881,0.61030886,57945.0,57941.0,0.12]
[1726198947087,0.04791999,57944.0,57940.0,0.0489]
[1726198947289,0.086286,57944.0,57940.0,0.0489]
[1726198947485,0.38664422,57945.0,57940.0,0.0489]
[1726198947486,0.38540422,57945.0,57940.0,0.0489]
[1726198947688,0.38540422,57945.0,57942.0,0.086288]
[1726198947888,0.38540422,57945.0,57944.0,0.12]
[1726198948088,0.47168822,57945.0,57944.0,0.12]
[1726198949605,0.49968822,57945.0,57944.0,0.12]
[1726198951007,0.41340422,57945.0,57944.0,0.206285]
[1726198951301,0.3888,57945.0,57944.0,0.206285]
[1726198952604,0.3888,57945.0,57944.0,0.25795511]
[1726198953200,0.3888,57945.0,57944.0,0.206285]
[1726198953201,0.3858,57945.0,57944.0,0.206285]
[1726198953401,0.3828,57945.0,57944.0,0.206285]
[1726198954502,0.63983472,57945.0,57944.0,0.206285]
[1726198954698,0.27903472,57945.0,57944.0,0.206285]
[1726198955597,0.17621074,57945.0,57944.0,0.206285]
[1726198955799,0.32042395,57945.0,57944.0,0.206285]
[1726198956494,0.16621321,57945.0,57944.0,0.206285]
[1726198958102,0.11146684,57945.0,57944.0,0.206285]
[1726198960307,0.11153212,57945.0,57944.0,0.206285]
[1726198962297,0.022,57945.0,57944.0,0.206285]
[1726198966513,0.022,57945.0,57944.0,0.27529753]
[1726198967916,0.022,57945.0,57944.0,0.206285]
[1726198968804,0.013,57945.0,57944.0,0.206285]
[1726198969004,0.002,57945.0,57944.0,0.206285]
[1726198969219,0.004,57945.0,57944.0,0.206285]
[1726198969414,0.006,57945.0,57944.0,0.206285]
[1726198969915,0.04955593,57945.0,57944.0,0.206285]
[1726198970121,0.04955593,57945.0,57941.0,0.0484]
[1726198970412,0.20965622,57944.0,57943.0,0.086287]
[1726198970614,0.08974117,57944.0,57943.0,0.086287]
[1726198971716,0.08974117,57944.0,57943.0,0.206287]
[1726198972718,0.09474117,57944.0,57943.0,0.206287]
[1726198973325,0.09874117,57944.0,57943.0,0.206287]
[1726198973527,0.23573234,57944.0,57943.0,0.206287]
[1726198974422,0.09874117,57944.0,57943.0,0.206287]
[1726198974814,0.05619956,57944.0,57943.0,0.206287]
[1726198975011,0.09771344,57944.0,57943.0,0.206287]
[1726198975322,0.09371344,57944.0,57943.0,0.206287]
[1726198975518,0.09771344,57944.0,57943.0,0.206287]
[1726198977119,0.14529182,57944.0,57943.0,0.567087]
[1726198977314,0.14529182,57944.0,57943.0,0.68053547]
[1726198977622,0.008,57944.0,57943.0,0.68053547]
[1726198979115,0.008,57944.0,57943.0,1.81053547]
[1726198979722,0.008,57944.0,57943.0,1.44973547]
[1726198981413,0.008,57944.0,57943.0,1.43325426]
[1726198981613,0.008,57944.0,57943.0,1.55325426]
[1726198981821,0.008,57944.0,57943.0,1.44973547]
[1726198982324,0.008,57944.0,57943.0,1.32973547]
[1726198982629,0.008,57944.0,57943.0,1.44973547]
[1726198983219,0.008,57944.0,57943.0,1.45012624]
[1726198984527,0.008,57944.0,57943.0,1.336287]
[1726198984727,0.3688,57944.0,57943.0,1.13]
[1726198984921,0.008,57944.0,57943.0,1.38806112]
[1726198985927,0.008,57944.0,57943.0,0.25806112]
[1726198986319,0.008,57944.0,57943.0,0.206287]
[1726198990825,0.008,57944.0,57943.0,0.12]
[1726198990826,0.094285,57944.0,57943.0,0.12]
[1726198992534,0.42666194,57944.0,57943.0,0.12]
[1726198993321,0.49116573,57944.0,57943.0,0.12]
[1726198993625,0.49139827,57944.0,57943.0,0.12]
[1726198994325,0.49139827,57944.0,57943.0,0.0638784]
[1726198994531,0.49139981,57944.0,57943.0,0.12]
[1726198995032,0.30252705,57944.0,57943.0,0.12]
[1726198995220,0.42689417,57944.0,57943.0,0.12]
[1726198995624,0.23802326,57944.0,57943.0,0.12]
[1726198996030,0.42689417,57944.0,57943.0,0.206287]
[1726198997032,0.08629,57941.0,57940.0,1.17978]
[1726198997230,0.08629,57941.0,57940.0,1.2989]
[1726198997533,0.08629,57941.0,57940.0,1.25]
[1726198997734,0.17546961,57941.0,57940.0,1.25]
[1726198997959,0.17422633,57941.0,57940.0,0.12]
[1726198998136,0.17422633,57941.0,57940.0,0.206291]
[1726198998434,0.17522633,57941.0,57940.0,0.206291]
[1726198998627,0.17622633,57941.0,57940.0,0.206291]
[1726198999221,0.18122633,57941.0,57940.0,0.206291]
[1726198999426,0.09329,57941.0,57940.0,0.206291]
[1726199000225,0.09729,57941.0,57940.0,0.25803319]
[1726199000426,0.09729,57941.0,57940.0,0.206291]
[1726199004230,0.09729,57941.0,57939.0,0.02492965]
[1726199004430,0.09729,57941.0,57940.0,0.12]
[1726199005329,0.09529,57941.0,57940.0,0.12]
[1726199006036,0.09729,57941.0,57940.0,0.12]
[1726199007138,0.01,57941.0,57940.0,0.12]
[1726199007333,0.01,57941.0,57940.0,0.17173938]
[1726199007539,0.15207916,57941.0,57940.0,0.12]
[1726199007736,0.09815025,57941.0,57940.0,0.12]
[1726199007931,0.09915025,57941.0,57940.0,0.567091]
[1726199008126,0.15452359,57945.0,57944.0,0.086285]
[1726199008340,0.15446237,57945.0,57944.0,0.086285]
[1726199008637,0.20860079,57946.0,57944.0,0.086285]
[1726199008840,0.3608,57948.0,57945.0,0.1682]
[1726199009035,0.05317092,57947.0,57946.0,0.086282]
[1726199011442,0.06417092,57947.0,57946.0,0.087282]
[1726199012339,0.06416956,57947.0,57946.0,0.087282]
[1726199012548,0.07516956,57947.0,57946.0,0.088282]
[1726199014549,0.022,57947.0,57946.0,0.14002484]
[1726199019150,0.3608,57950.0,57946.0,0.088282]
[1726199019458,0.008,57955.0,57954.0,0.086271]
[1726199019651,0.36204,57957.0,57955.0,0.178969]
[1726199019652,0.3608,57957.0,57955.0,0.178969]
[1726199021855,0.3698,57957.0,57955.0,0.179969]
[1726199022054,0.3798,57957.0,57955.0,0.180969]
[1726199022359,0.019,57957.0,57955.0,0.180969]
[1726199025862,0.019,57957.0,57955.0,0.20624508]
[1726199028068,0.019,57957.0,57956.0,0.086268]
[1726199028265,0.019,57957.0,57955.0,0.0481]
[1726199028568,0.105266,57957.0,57955.0,0.134368]
[1726199029066,0.105266,57957.0,57956.0,0.086268]
[1726199029263,0.086266,57957.0,57956.0,0.087268]
[1726199029455,0.18157113,57957.0,57956.0,0.088268]
[1726199029764,0.234983,57957.0,57956.0,0.088268]
[1726199030065,0.234983,57957.0,57956.0,0.208268]
[1726199031255,0.234983,57957.0,57956.0,0.207268]
[1726199031459,0.244983,57957.0,57956.0,0.207268]
[1726199031962,0.244983,57957.0,57956.0,0.208268]
[1726199036467,0.104266,57957.0,57956.0,0.208268]
[1726199038172,0.1447154,57957.0,57956.0,0.208268]
[1726199039661,0.104266,57957.0,57956.0,0.208268]
[1726199040166,0.14471401,57957.0,57956.0,0.208268]
[1726199040370,0.104266,57957.0,57956.0,0.208268]
[1726199041174,0.14471308,57957.0,57956.0,0.208268]
[1726199041367,0.104266,57957.0,57956.0,0.208268]
[1726199041875,0.14471687,57957.0,57956.0,0.208268]
[1726199042173,0.14471794,57957.0,57956.0,0.208268]
[1726199042472,0.14471794,57957.0,57956.0,0.002]
[1726199042674,0.14471794,57957.0,57956.0,0.122]
[1726199044670,0.24517658,57957.0,57956.0,0.12]
[1726199045272,0.24518098,57957.0,57956.0,0.12]
[1726199047683,0.30844101,57957.0,57956.0,0.12]
[1726199048182,0.24518098,57957.0,57956.0,0.12]
[1726199050180,0.23850431,57957.0,57956.0,0.12]
[1726199051787,0.23850431,57957.0,57956.0,0.17170953]
[1726199051788,0.104266,57957.0,57956.0,0.17170953]
[1726199052188,0.104266,57957.0,57956.0,0.12]
[1726199052683,0.104266,57957.0,57956.0,0.17177822]
[1726199054084,0.104266,57957.0,57956.0,0.206268]
[1726199054279,0.104266,57957.0,57956.0,0.2580487]
[1726199055495,0.104266,57957.0,57956.0,0.206268]
[1726199055692,0.104266,57957.0,57956.0,0.2580487]
[1726199057188,0.104266,57957.0,57956.0,0.206268]
[1726199057493,0.104266,57957.0,57955.0,0.0517807]
[1726199057696,0.104266,57957.0,57951.0,0.15530611]
[1726199057697,0.086269,57955.0,57952.0,0.0517807]
[1726199057896,0.63764,57956.0,57951.0,0.0517807]
[1726199057897,0.086273,57952.0,57951.0,0.0517807]
[1726199058110,0.206272,57953.0,57949.0,0.4988587]
[1726199059004,0.085276,57950.0,57949.0,0.4125807]
[1726199059205,0.085276,57950.0,57949.0,0.3608]
[1726199059513,0.085276,57950.0,57949.0,0.3618]
[1726199059707,0.48345135,57950.0,57949.0,0.002]
[1726199059909,0.56963783,57950.0,57949.0,0.002]
[1726199060104,0.68991029,57950.0,57949.0,0.002]
[1726199060409,1.99699046,57950.0,57949.0,0.002]
[1726199060609,1.91249619,57950.0,57949.0,0.002]
[1726199061215,2.06685653,57950.0,57949.0,0.002]
[1726199061399,1.91249619,57950.0,57949.0,0.002]
[1726199061910,1.92249619,57950.0,57949.0,0.002]
[1726199062211,1.92249619,57950.0,57942.0,0.004]
[1726199062212,0.086287,57943.0,57942.0,0.004]
[1726199062410,0.39808583,57943.0,57940.0,0.20629]
[1726199062614,0.03728583,57942.0,57936.0,0.11165745]